lending/lending_fUSD_20250808
["ID","MTS","AMOUNT","RATE_DAILY","PERIOD"]
[378025808,1754674244011,-13642.5870176,0.00018466,2]
[378025809,1754674244021,-6012.72488454,0.0001849,2]
[378025810,1754674244030,-155.45722429,0.00018494,2]
[378025811,1754674244039,-2040.97353554,0.00018495,2]
[378025812,1754674244049,-1100.0,0.000185,6]
[378025813,1754674244062,-151.0,0.00018501,2]
[378025814,1754674244072,-151.0,0.00018501,2]
[378025815,1754674244081,-253.28146,0.00018501,2]
[378025816,1754674244091,-155.915594,0.00018501,2]
[378025817,1754674244100,-151.0,0.00018501,2]
[378025818,1754674244110,-236.498539,0.00018501,2]
[378025819,1754674244119,-168.0,0.00018504,2]
[378025820,1754674244128,-6235.19570527,0.00018545,2]
[378025821,1754674244140,-152.881551,0.00018546,2]
[378025822,1754674244150,-151.0,0.00018546,2]
[378025823,1754674244159,-235.0,0.00018552,2]
[378025824,1754674244169,-151.0,0.00018556,2]
[378025825,1754674244178,-151.0,0.00018556,2]
[378025826,1754674244188,-151.0,0.00018556,2]
[378025827,1754674244197,-308.087991,0.00018556,2]
[378025828,1754674244206,-308.087991,0.00018556,2]
[378025829,1754674244216,-447.50625744,0.0001856,2]
[378025830,1754674244225,-172.14711092,0.0001856,2]
[378025831,1754674244234,-2040.97353554,0.00018562,2]
[378025832,1754674244244,-155.45722429,0.00018596,2]
[378025833,1754674244253,-1500.0,0.000186,6]
[378025834,1754674244263,-6465.89794637,0.000186,2]
[378025835,1754674244272,-169.0,0.00018603,2]
[378025836,1754674244281,-235.0,0.00018605,2]
[378025837,1754674244291,-168.0,0.00018607,2]
[378025838,1754674244300,-151.0,0.00018611,2]
[378025839,1754674244310,-151.0,0.00018611,2]
[378025840,1754674244320,-151.0,0.00018611,2]
[378025841,1754674244329,-2672.81,0.00018629,2]
[378025842,1754674244339,-2040.97353554,0.0001863,2]
[378025843,1754674244348,-316.86,0.0001864,2]
[378025844,1754674244359,-6705.13617038,0.00018655,2]
[378025845,1754674244369,-1180.41,0.00018657,2]
[378025846,1754674244378,-21314.7,0.00018657,2]
[378025847,1754674244387,-2672.81,0.00018659,2]
[378025848,1754674244397,-2672.81,0.00018659,2]
[378025849,1754674244407,-2672.81,0.00018659,2]
[378025850,1754674244417,-65309.86121,0.0001866,2]
[378025851,1754674244865,-151.0,0.00018466,2]
[378025852,1754674244875,-953.80047542,0.0001866,2]
[378025853,1754674244887,-6139.84044293,0.0001866,2]
[378025854,1754674244899,-13371.68339778,0.0001866,2]
[378025855,1754674244913,-4405.77138875,0.0001866,2]
[378025856,1754674244929,-3430.27801453,0.0001866,2]
[378025857,1754674245547,-193.97270667,0.0001839,2]
[378025858,1754674245559,-8734.5749927,0.0001866,2]
[378025859,1754674245571,-1121.40671461,0.0001866,2]
[378025860,1754674245582,-952.04447236,0.0001866,2]
[378025861,1754674245594,-461.412428,0.0001866,2]
[378025862,1754674245606,-4686.32964663,0.0001866,2]
[378025867,1754674284995,-77933.88307487,0.0001866,2]
[378025868,1754674285005,-7318.0297798,0.0001866,2]
[378025869,1754674285015,-860328.35,0.0001866,2]
[378025870,1754674285024,-151.0,0.0001866,2]
[378025871,1754674285034,-235.683097,0.0001866,2]
[378025872,1754674285043,-151.0,0.0001866,2]
[378025873,1754674285052,-151.0,0.0001866,2]
[378025874,1754674285062,-151.774708,0.0001866,2]
[378025875,1754674285075,-151.0,0.0001866,2]
[378025876,1754674285085,-151.0,0.0001866,2]
[378025877,1754674285095,-151.0,0.0001866,2]
[378025878,1754674285106,-151.0,0.0001866,2]
[378025879,1754674285116,-151.0,0.0001866,2]
[378025880,1754674285126,-151.0,0.0001866,2]
[378025881,1754674285135,-151.0,0.0001866,2]
[378025882,1754674285146,-151.0,0.0001866,2]
[378025883,1754674285155,-151.0,0.0001866,2]
[378025884,1754674285165,-151.0,0.0001866,2]
[378025885,1754674285176,-151.0,0.0001866,2]
[378025886,1754674285186,-277.0,0.0001866,2]
[378025887,1754674285196,-154.676203,0.0001866,2]
[378025888,1754674285206,-153.094341,0.0001866,2]
[378025889,1754674285215,-268.141065,0.0001866,2]
[378025890,1754674285224,-268.141065,0.0001866,2]
[378025891,1754674285234,-862.990561,0.0001866,2]
[378025892,1754674285243,-862.990561,0.0001866,2]
[378025893,1754674285254,-151.0,0.0001866,2]
[378025894,1754674285263,-151.0,0.0001866,2]
[378025895,1754674285273,-203.65,0.0001866,2]
[378025896,1754674285283,-203.65,0.0001866,2]
[378025897,1754674285294,-151.0,0.0001866,2]
[378025898,1754674285303,-341.333079,0.0001866,2]
[378025899,1754674285313,-341.333079,0.0001866,2]
[378025900,1754674285323,-151.0,0.0001866,2]
[378025901,1754674285333,-151.0,0.0001866,2]
[378025902,1754674285343,-154.584143,0.0001866,2]
[378025903,1754674285353,-171.803334,0.0001866,2]
[378025904,1754674285363,-153.330257,0.0001866,2]
[378025905,1754674285373,-263.553752,0.0001866,2]
[378025906,1754674285383,-263.553752,0.0001866,2]
[378025907,1754674285393,-156.833156,0.0001866,2]
[378025908,1754674285403,-151.0,0.0001866,2]
[378025909,1754674285413,-151.697016,0.0001866,2]
[378025910,1754674285423,-151.0,0.0001866,2]
[378025911,1754674285435,-151.0,0.0001866,2]
[378025912,1754674285444,-151.0,0.0001866,2]
[378025913,1754674285454,-151.0,0.0001866,2]
[378025914,1754674285464,-151.0,0.0001866,2]
[378025915,1754674285473,-308.087991,0.0001866,2]
[378025916,1754674285483,-151.0,0.0001866,2]
[378025917,1754674285493,-308.087991,0.0001866,2]
[378025918,1754674285502,-151.0,0.0001866,2]
[378025919,1754674285513,-151.0,0.0001866,2]
[378025920,1754674285522,-151.0,0.0001866,2]
[378025921,1754674285534,-400.0,0.00018664,2]
[378025922,1754674285543,-163.329809,0.00018664,2]
[378025923,1754674285553,-400.0,0.00018664,2]
[378025924,1754674285563,-151.0,0.00018664,2]
[378025925,1754674285573,-661.11,0.00018664,2]
[378025926,1754674285584,-2954.91,0.00018664,2]
[378025927,1754674285595,-2275.54,0.00018664,2]
[378025928,1754674285606,-151.0,0.00018664,2]
[378025929,1754674285616,-946.48,0.00018664,2]
[378025930,1754674285626,-848.32,0.00018664,2]
[378025931,1754674285638,-7691.76,0.00018664,2]
[378025932,1754674285648,-1032.75,0.00018664,2]
[378025933,1754674285658,-600.19,0.00018664,2]
[378025934,1754674285669,-1855.93,0.00018664,2]
[378025935,1754674285678,-675.93,0.00018664,2]
[378025936,1754674285688,-5291.16,0.00018664,2]
[378025937,1754674285698,-2731.24,0.00018664,2]
[378025938,1754674285708,-3569.89,0.00018664,2]
[378025939,1754674285722,-308.087991,0.00018664,2]
[378025940,1754674285732,-308.087991,0.00018664,2]
[378025941,1754674285741,-643.22,0.00018664,2]
[378025942,1754674285752,-2672.81,0.00018664,2]
[378025943,1754674285762,-2672.81,0.00018664,2]
[378025944,1754674285772,-1935.23,0.00018664,2]
[378025945,1754674285783,-400.0,0.00018664,2]
[378025946,1754674285793,-400.0,0.00018664,2]
[378025947,1754674285803,-151.0,0.00018664,2]
[378025948,1754674285812,-185.89199344,0.00018664,2]
[378025949,1754674285825,-774.94,0.00018664,2]
[378025950,1754674285835,-821.85,0.00018664,2]
[378025951,1754674285845,-538.44,0.00018664,2]
[378025952,1754674285854,-447.97,0.00018664,2]
[378025953,1754674285864,-529.03468818,0.00018664,2]
[378025954,1754674285874,-500.0,0.00018665,2]
[378025955,1754674285884,-500.0,0.00018665,2]
[378025956,1754674285895,-500.0,0.00018665,2]
[378025957,1754674285906,-150.0,0.00018665,2]
[378025958,1754674285916,-947.0,0.00018665,2]
[378025959,1754674285929,-500.0,0.00018665,2]
[378025960,1754674285949,-150.0,0.00018665,2]
[378025961,1754674285961,-500.0,0.00018665,2]
[378025962,1754674285971,-205.16083841,0.00018665,2]
[378025963,1754674285982,-500.0,0.00018665,2]
[378025964,1754674285992,-551.4508455,0.00018665,2]
[378025965,1754674286001,-1798.0,0.00018665,2]
[378025966,1754674286014,-977.0,0.00018665,2]
[378025967,1754674286024,-156.799685,0.00018665,2]
[378025968,1754674286033,-183.659282,0.00018665,2]
[378025969,1754674286043,-151.0,0.00018665,2]
[378025970,1754674286054,-400.0,0.00018665,2]
[378025971,1754674286063,-400.0,0.00018665,2]
[378025972,1754674286075,-1000.0,0.00018665,2]
[378025973,1754674286085,-500.0,0.00018665,2]
[378025974,1754674286094,-2162.28,0.00018665,2]
[378025975,1754674286104,-614.4674941,0.00018665,2]
[378025976,1754674286115,-788.52,0.00018665,2]
[378025977,1754674286125,-606.57,0.00018665,2]
[378025978,1754674286136,-691.64,0.00018665,2]
[378025979,1754674286147,-504.23,0.00018665,2]
[378025980,1754674286157,-711.68,0.00018665,2]
[378025981,1754674286167,-672.8,0.00018665,2]
[378025982,1754674286179,-400.0,0.00018665,2]
[378025983,1754674286189,-767.72,0.00018665,2]
[378025984,1754674286199,-400.0,0.00018665,2]
[378025985,1754674286209,-400.0,0.00018665,2]
[378025986,1754674286218,-411.37,0.00018665,2]
[378025987,1754674286228,-692.39,0.00018665,2]
[378025988,1754674286238,-460.18,0.00018665,2]
[378025989,1754674286248,-680.33,0.00018665,2]
[378025990,1754674286257,-418.64,0.00018665,2]
[378025991,1754674286268,-400.0,0.00018665,2]
[378025992,1754674286278,-151.0,0.00018665,2]
[378025993,1754674286288,-228.664533,0.00018665,2]
[378025994,1754674286298,-400.0,0.00018665,2]
[378025995,1754674286309,-400.0,0.00018665,2]
[378025996,1754674286319,-1053.65,0.00018665,2]
[378025997,1754674286330,-400.0,0.00018665,2]
[378025998,1754674286340,-591.98,0.00018665,2]
[378025999,1754674286350,-151.0,0.00018665,2]
[378026000,1754674286360,-400.0,0.00018665,2]
[378026001,1754674286371,-400.0,0.00018665,2]
[378026002,1754674286381,-400.0,0.00018665,2]
[378026003,1754674286394,-400.0,0.00018665,2]
[378026004,1754674286404,-820.42,0.00018665,2]
[378026005,1754674286415,-151.0,0.00018665,2]
[378026006,1754674286424,-540.05,0.00018665,2]
[378026007,1754674286435,-444.75,0.00018665,2]
[378026008,1754674286445,-400.0,0.00018665,2]
[378026009,1754674286455,-158.33958,0.00018665,2]
[378026010,1754674286466,-475.1,0.00018665,2]
[378026011,1754674286477,-1065.2,0.00018665,2]
[378026012,1754674286488,-663.95,0.00018665,2]
[378026013,1754674286498,-664.58,0.00018665,2]
[378026014,1754674286508,-400.0,0.00018665,2]
[378026015,1754674286518,-552.2,0.00018665,2]
[378026016,1754674286528,-795.59,0.00018665,2]
[378026017,1754674286539,-400.0,0.00018665,2]
[378026018,1754674286551,-1009.8,0.00018665,2]
[378026019,1754674286561,-400.0,0.00018665,2]
[378026020,1754674286572,-400.0,0.00018665,2]
[378026021,1754674286582,-400.0,0.00018665,2]
[378026022,1754674286592,-400.0,0.00018665,2]
[378026023,1754674286603,-400.0,0.00018665,2]
[378026024,1754674286614,-758.91,0.00018665,2]
[378026025,1754674286624,-400.0,0.00018665,2]
[378026026,1754674286635,-151.0,0.00018665,2]
[378026027,1754674286646,-151.0,0.00018665,2]
[378026028,1754674286656,-151.0,0.00018665,2]
[378026029,1754674286668,-400.0,0.00018665,2]
[378026030,1754674286909,-153.407447,0.00018665,2]
[378026031,1754674286919,-405.9,0.00018665,2]
[378026032,1754674286933,-794.09,0.00018665,2]
[378026033,1754674286943,-860.42,0.00018665,2]
[378026034,1754674286953,-151.0,0.00018665,2]
[378026035,1754674286963,-497.38,0.00018665,2]
[378026036,1754674286973,-400.0,0.00018665,2]
[378026037,1754674286983,-675.98,0.00018665,2]
[378026038,1754674286992,-400.0,0.00018665,2]
[378026039,1754674287002,-400.0,0.00018665,2]
[378026040,1754674287011,-1322.96,0.00018665,2]
[378026041,1754674287021,-515.94,0.00018665,2]
[378026042,1754674287031,-492.09,0.00018665,2]
[378026043,1754674287041,-1269.65,0.00018665,2]
[378026044,1754674287051,-1150.11,0.00018665,2]
[378026045,1754674287061,-400.0,0.00018665,2]
[378026046,1754674287072,-500.0,0.00018665,2]
[378026047,1754674287082,-729.76,0.00018665,2]
[378026048,1754674287092,-400.0,0.00018665,2]
[378026049,1754674287101,-786.33,0.00018665,2]
[378026050,1754674287110,-400.0,0.00018665,2]
[378026051,1754674287121,-400.0,0.00018665,2]
[378026052,1754674287130,-400.0,0.00018665,2]
[378026053,1754674287140,-400.0,0.00018665,2]
[378026054,1754674287151,-268.141065,0.00018665,2]
[378026055,1754674287162,-933.94,0.00018665,2]
[378026056,1754674287173,-268.141065,0.00018665,2]
[378026057,1754674287182,-1309.0,0.00018665,2]
[378026058,1754674287192,-630.93,0.00018665,2]
[378026059,1754674287201,-1106.53,0.00018665,2]
[378026060,1754674287211,-1201.36,0.00018665,2]
[378026061,1754674287220,-400.0,0.00018665,2]
[378026062,1754674287235,-623.4,0.00018665,2]
[378026063,1754674287244,-1959.17,0.00018665,2]
[378026064,1754674287254,-400.0,0.00018665,2]
[378026065,1754674287263,-948.04,0.00018665,2]
[378026066,1754674287272,-1232.12,0.00018665,2]
[378026067,1754674287281,-501.95,0.00018665,2]
[378026068,1754674287291,-400.0,0.00018665,2]
[378026069,1754674287300,-8952.48,0.00018665,2]
[378026070,1754674287310,-8579.46,0.00018665,2]
[378026071,1754674287319,-1029.5,0.00018665,2]
[378026072,1754674287330,-400.0,0.00018665,2]
[378026073,1754674287339,-400.0,0.00018665,2]
[378026074,1754674287349,-400.0,0.00018665,2]
[378026075,1754674287359,-1075.7,0.00018665,2]
[378026076,1754674287368,-400.0,0.00018665,2]
[378026077,1754674287379,-1017.42,0.00018665,2]
[378026078,1754674287389,-467.67,0.00018665,2]
[378026079,1754674287399,-743.32,0.00018665,2]
[378026080,1754674287410,-400.0,0.00018665,2]
[378026081,1754674287420,-151.0,0.00018665,2]
[378026082,1754674287433,-151.0,0.00018665,2]
[378026083,1754674287443,-1487.67,0.00018665,2]
[378026084,1754674287452,-496.93,0.00018665,2]
[378026085,1754674287462,-466.11,0.00018665,2]
[378026086,1754674287472,-151.0,0.00018665,2]
[378026087,1754674287481,-400.0,0.00018665,2]
[378026088,1754674287491,-203.65,0.00018665,2]
[378026089,1754674287500,-400.0,0.00018665,2]
[378026090,1754674287509,-203.65,0.00018665,2]
[378026091,1754674287519,-1260.4,0.00018665,2]
[378026092,1754674287528,-470.18,0.00018665,2]
[378026093,1754674287538,-641.02,0.00018665,2]
[378026094,1754674287550,-400.0,0.00018665,2]
[378026095,1754674287565,-341.333079,0.00018665,2]
[378026096,1754674287574,-341.333079,0.00018665,2]
[378026097,1754674287585,-341.333079,0.00018665,2]
[378026098,1754674287595,-341.333079,0.00018665,2]
[378026099,1754674287605,-400.0,0.00018665,2]
[378026100,1754674287615,-3797.91,0.00018665,2]
[378026101,1754674287626,-400.0,0.00018665,2]
[378026102,1754674287637,-151.0,0.00018665,2]
[378026103,1754674287646,-151.0,0.00018665,2]
[378026104,1754674287656,-400.0,0.00018665,2]
[378026105,1754674287666,-1052.14,0.00018665,2]
[378026106,1754674287675,-1190.01,0.00018665,2]
[378026107,1754674287686,-889.41,0.00018665,2]
[378026108,1754674287695,-739.75,0.00018665,2]
[378026109,1754674287705,-1750.29,0.00018665,2]
[378026110,1754674287714,-1630.68,0.00018665,2]
[378026111,1754674287723,-1099.06,0.00018665,2]
[378026112,1754674287732,-3225.29,0.00018665,2]
[378026113,1754674287742,-2289.35,0.00018665,2]
[378026114,1754674287751,-1124.14,0.00018665,2]
[378026115,1754674287761,-400.0,0.00018665,2]
[378026116,1754674287771,-838.76,0.00018665,2]
[378026117,1754674287781,-1564.85,0.00018665,2]
[378026118,1754674287791,-752.21,0.00018665,2]
[378026119,1754674287800,-263.553752,0.00018665,2]
[378026120,1754674287810,-1259.02,0.00018665,2]
[378026121,1754674287820,-263.553752,0.00018665,2]
[378026122,1754674287830,-1360.45,0.00018665,2]
[378026123,1754674287839,-263.553752,0.00018665,2]
[378026124,1754674287849,-263.553752,0.00018665,2]
[378026125,1754674287859,-400.0,0.00018665,2]
[378026126,1754674287869,-400.0,0.00018665,2]
[378026127,1754674287878,-447.46,0.00018665,2]
[378026128,1754674287887,-400.0,0.00018665,2]
[378026129,1754674287898,-457.11,0.00018665,2]
[378026130,1754674287907,-907.31,0.00018665,2]
[378026131,1754674287917,-635.96,0.00018665,2]
[378026132,1754674287926,-2511.44,0.00018665,2]
[378026133,1754674287937,-516.43,0.00018665,2]
[378026134,1754674287946,-466.61,0.00018665,2]
[378026135,1754674287955,-841.87,0.00018665,2]
[378026136,1754674287965,-400.0,0.00018665,2]
[378026137,1754674287974,-400.0,0.00018665,2]
[378026138,1754674287984,-909.41,0.00018665,2]
[378026139,1754674287996,-400.0,0.00018665,2]
[378026140,1754674288006,-212.668008,0.00018665,2]
[378026141,1754674288015,-633.54,0.00018665,2]
[378026142,1754674288024,-1757.88,0.00018665,2]
[378026143,1754674288034,-3698.85,0.00018665,2]
[378026144,1754674288043,-1660.57,0.00018665,2]
[378026145,1754674288053,-748.76,0.00018665,2]
[378026146,1754674288063,-400.0,0.00018665,2]
[378026147,1754674288077,-2130.8,0.00018665,2]
[378026148,1754674288087,-466.12,0.00018665,2]
[378026149,1754674288097,-724.03,0.00018665,2]
[378026150,1754674288109,-420.45,0.00018665,2]
[378026151,1754674288121,-1000.99,0.00018665,2]
[378026152,1754674288131,-956.66,0.00018665,2]
[378026153,1754674288141,-400.0,0.00018665,2]
[378026154,1754674288152,-1301.7,0.00018665,2]
[378026155,1754674288161,-825.21,0.00018665,2]
[378026156,1754674288172,-1094.31,0.00018665,2]
[378026157,1754674288182,-498.58,0.00018665,2]
[378026158,1754674288191,-815.06,0.00018665,2]
[378026159,1754674288201,-1195.76,0.00018665,2]
[378026160,1754674288211,-442.27,0.00018665,2]
[378026161,1754674288221,-484.27,0.00018665,2]
[378026162,1754674288231,-552.06,0.00018665,2]
[378026163,1754674288241,-400.0,0.00018665,2]
[378026164,1754674288250,-2556.32,0.00018665,2]
[378026165,1754674288260,-624.41,0.00018665,2]
[378026166,1754674288269,-844.68,0.00018665,2]
[378026167,1754674288279,-440.75,0.00018665,2]
[378026168,1754674288288,-151.0,0.00018665,2]
[378026169,1754674288298,-1182.8,0.00018665,2]
[378026170,1754674288307,-1893.37,0.00018665,2]
[378026171,1754674288317,-400.0,0.00018665,2]
[378026172,1754674288327,-520.64,0.00018665,2]
[378026173,1754674288336,-3101.03,0.00018665,2]
[378026174,1754674288346,-524.52,0.00018665,2]
[378026175,1754674288355,-151.0,0.00018665,2]
[378026176,1754674288364,-616.08,0.00018665,2]
[378026177,1754674288375,-732.88,0.00018665,2]
[378026178,1754674288384,-856.38,0.00018665,2]
[378026179,1754674288394,-4832.78,0.00018665,2]
[378026180,1754674288403,-627.0,0.00018665,2]
[378026181,1754674288414,-400.0,0.00018665,2]
[378026182,1754674288423,-400.0,0.00018665,2]
[378026183,1754674288433,-952.86,0.00018665,2]
[378026184,1754674288443,-1841.68,0.00018665,2]
[378026185,1754674288453,-400.0,0.00018665,2]
[378026186,1754674288463,-480.32,0.00018665,2]
[378026187,1754674288474,-803.51,0.00018665,2]
[378026188,1754674288484,-3627.65,0.00018665,2]
[378026189,1754674288493,-400.0,0.00018665,2]
[378026190,1754674288503,-429.23,0.00018665,2]
[378026191,1754674288515,-467.89,0.00018665,2]
[378026192,1754674288526,-1771.62,0.00018665,2]
[378026193,1754674288536,-781.89,0.00018665,2]
[378026194,1754674288547,-400.0,0.00018665,2]
[378026195,1754674288559,-1163.42,0.00018665,2]
[378026196,1754674288568,-585.49,0.00018665,2]
[378026197,1754674288579,-842.16,0.00018665,2]
[378026198,1754674288589,-784.71,0.00018665,2]
[378026199,1754674288599,-971.72,0.00018665,2]
[378026200,1754674288610,-498.13,0.00018665,2]
[378026201,1754674288621,-437.29,0.00018665,2]
[378026202,1754674288632,-943.37,0.00018665,2]
[378026203,1754674288642,-1364.1,0.00018665,2]
[378026204,1754674288651,-4194.96,0.00018665,2]
[378026205,1754674288660,-3720.86,0.00018665,2]
[378026206,1754674288671,-400.0,0.00018665,2]
[378026207,1754674288682,-400.0,0.00018665,2]
[378026208,1754674288691,-158.905473,0.00018665,2]
[378026209,1754674288700,-400.0,0.00018665,2]
[378026210,1754674288710,-482.49,0.00018665,2]
[378026211,1754674288720,-932.41,0.00018665,2]
[378026212,1754674288730,-467.73,0.00018665,2]
[378026213,1754674288740,-413.62,0.00018665,2]
[378026214,1754674288750,-694.04,0.00018665,2]
[378026215,1754674288759,-785.65,0.00018665,2]
[378026216,1754674288769,-1073.17,0.00018665,2]
[378026217,1754674288779,-2564.99,0.00018665,2]
[378026218,1754674288788,-1271.83,0.00018665,2]
[378026219,1754674288797,-1694.26,0.00018665,2]
[378026220,1754674288807,-400.0,0.00018665,2]
[378026221,1754674288817,-501.58,0.00018665,2]
[378026222,1754674288826,-308.087991,0.00018665,2]
[378026223,1754674288835,-561.21,0.00018665,2]
[378026224,1754674288845,-695.37,0.00018665,2]
[378026225,1754674288854,-1291.31,0.00018665,2]
[378026226,1754674288863,-308.087991,0.00018665,2]
[378026227,1754674288873,-400.0,0.00018665,2]
[378026228,1754674288882,-151.0,0.00018665,2]
[378026229,1754674288892,-151.0,0.00018665,2]
[378026230,1754674288902,-2672.81,0.00018665,2]
[378026231,1754674288912,-1430.86,0.00018665,2]
[378026232,1754674288922,-3151.61,0.00018665,2]
[378026233,1754674288932,-464.8,0.00018665,2]
[378026234,1754674288941,-151.0,0.00018665,2]
[378026235,1754674288951,-836.4,0.00018665,2]
[378026236,1754674288960,-421.02,0.00018665,2]
[378026237,1754674288969,-2829.87,0.00018665,2]
[378026238,1754674288979,-850.6,0.00018665,2]
[378026239,1754674288988,-400.0,0.00018665,2]
[378026240,1754674288998,-2412.01,0.00018665,2]
[378026241,1754674289007,-3147.45,0.00018665,2]
[378026242,1754674289018,-3174.96,0.00018665,2]
[378026243,1754674289027,-1344.29,0.00018665,2]
[378026244,1754674289036,-400.0,0.00018665,2]
[378026245,1754674289045,-150.0,0.00018666,2]
[378026246,1754674289055,-500.0,0.00018666,2]
[378026247,1754674289065,-500.0,0.00018666,2]
[378026248,1754674289081,-500.0,0.00018666,2]
[378026249,1754674289090,-285.12987651,0.00018666,2]
[378026250,1754674289099,-150.0,0.00018666,2]
[378026251,1754674289109,-500.0,0.00018666,2]
[378026252,1754674289118,-187.4172562,0.00018666,2]
[378026253,1754674289127,-475.15,0.00018666,2]
[378026254,1754674289137,-400.0,0.00018666,2]
[378026255,1754674289148,-400.0,0.00018666,2]
[378026256,1754674289157,-400.0,0.00018666,2]
[378026257,1754674289167,-400.0,0.00018666,2]
[378026258,1754674289179,-400.0,0.00018666,2]
[378026259,1754674289188,-400.0,0.00018666,2]
[378026260,1754674289198,-400.0,0.00018666,2]
[378026261,1754674289208,-400.0,0.00018666,2]
[378026262,1754674289217,-400.0,0.00018666,2]
[378026263,1754674289305,-400.0,0.00018666,2]
[378026264,1754674289315,-400.0,0.00018666,2]
[378026265,1754674289324,-300.0,0.00018666,2]
[378026266,1754674289333,-400.0,0.00018666,2]
[378026267,1754674289342,-613.14,0.00018666,2]
[378026268,1754674289352,-487.53,0.00018666,2]
[378026269,1754674289361,-400.0,0.00018666,2]
[378026270,1754674289370,-400.0,0.00018666,2]
[378026271,1754674289379,-400.0,0.00018666,2]
[378026272,1754674289388,-400.0,0.00018666,2]
[378026273,1754674289398,-470.26,0.00018666,2]
[378026274,1754674289408,-400.0,0.00018666,2]
[378026275,1754674289417,-400.0,0.00018666,2]
[378026276,1754674289426,-400.0,0.00018666,2]
[378026277,1754674289435,-400.0,0.00018666,2]
[378026278,1754674289445,-400.0,0.00018666,2]
[378026279,1754674289457,-400.0,0.00018666,2]
[378026280,1754674289467,-400.0,0.00018666,2]
[378026281,1754674289477,-580.1,0.00018666,2]
[378026282,1754674289486,-462.27,0.00018666,2]
[378026283,1754674289495,-400.0,0.00018666,2]
[378026284,1754674289505,-400.0,0.00018666,2]
[378026285,1754674289514,-400.0,0.00018666,2]
[378026286,1754674289523,-151.0,0.00018666,2]
[378026287,1754674289532,-494.63912388,0.00018666,2]
[378026288,1754674289541,-400.0,0.00018666,2]
[378026289,1754674289550,-479.7,0.00018666,2]
[378026290,1754674289559,-152.79175197,0.00018666,2]
[378026291,1754674289568,-400.0,0.00018666,2]
[378026292,1754674289578,-568.03,0.00018666,2]
[378026293,1754674289588,-400.0,0.00018666,2]
[378026294,1754674289597,-400.0,0.00018666,2]
[378026295,1754674289606,-400.0,0.00018666,2]
[378026296,1754674289616,-421.44,0.00018666,2]
[378026297,1754674289625,-418.64,0.00018666,2]
[378026298,1754674289635,-400.0,0.00018666,2]
[378026299,1754674289645,-504.49,0.00018666,2]
[378026300,1754674289655,-362.30585196,0.00018666,2]
[378026301,1754674289664,-400.0,0.00018666,2]
[378026302,1754674289674,-700.9,0.00018666,2]
[378026303,1754674289685,-520.77,0.00018666,2]
[378026304,1754674289694,-400.0,0.00018666,2]
[378026305,1754674289703,-400.0,0.00018666,2]
[378026306,1754674289712,-151.0,0.00018666,2]
[378026307,1754674289722,-151.0,0.00018666,2]
[378026308,1754674289731,-400.0,0.00018666,2]
[378026309,1754674289740,-400.0,0.00018666,2]
[378026310,1754674289750,-400.0,0.00018666,2]
[378026311,1754674289759,-833.25,0.00018666,2]